Cogmind - Beta 16.1 @@@ ROGUE MODE // 2026.03.23 @ 21:18:06 Player: Triffids Result: Self-destructed Performance ------------- Evolutions (2) 1000 Regions Visited (3) 600 Robots Destroyed (40) 200 Value Destroyed (763) 763 Prototype IDs (5) 100 Alien Tech Used (0) 0 Bonus (0) 0 TOTAL SCORE: 2663 Bonus ------- None Cogmind --------- Core Integrity 405/550 Matter 300/300 Energy 70/100 System Corruption 0% Temperature Danger (420) Movement Core (250) Ox4 Location -8/Materials Parts ------- > --- POWER (1) -------- (None) > --- PROPULSION (4) --- (None) > --- UTILITY (4) ------ Medium Storage Unit Signal Interpreter > --- WEAPON (2) ------- Improved EM Shotgun > --- INVENTORY (10) --- Heat Sink Medium Matter Pod (100) Improved Terrain Scanner Light Armor Plating Hacking Suite Pulse Rifle Shotgun Improved Assault Rifle Mini Grenade Launcher Mining Laser Peak State ------------ > --- POWER ------------ Improved Ion Engine > --- PROPULSION ------- Aluminum Leg Aluminum Leg Aluminum Leg Improved Aluminum Leg > --- UTILITY ---------- Heat Sink Medium Storage Unit Signal Interpreter Improved Light Armor Plating > --- WEAPON ----------- EM Pulse Cannon Advanced Beam Cannon > --- INVENTORY -------- Improved Ion Engine Medium Matter Pod Sensor Array Improved Terrain Scanner Hacking Suite Pulse Rifle Shotgun Improved Assault Rifle Mini Grenade Launcher Mining Laser [Rating: 21] Favorites ----------- Power Light Ion Engine Engine Light Ion Engine Propulsion Aluminum Leg Leg Aluminum Leg Utility Structural Scanner Device Structural Scanner Storage Medium Storage Unit Processor Signal Interpreter Protection Improved Light Armor Plating Weapon Medium Laser Energy Gun Medium Laser Energy Cannon Advanced Beam Cannon Ballistic Gun Shotgun Special Weapon Mining Laser Build | -11 -10 -9 -8 ------- Run | Yrd Mat Mat Mat Slots Evolved 4 | . . 2 2 Power . | . . . . Propulsion 2 | . . . 2 Utility 2 | . . 2 . Weapon . | . . . . Parts Attached 30 | 7 6 7 10 Power 4 | 1 1 1 1 Engine 4 | 1 1 1 1 Core . | . . . . Reactor . | . . . . Propulsion 8 | 2 2 1 3 Treads . | . . . . Leg 8 | 2 2 1 3 Wheel . | . . . . Hover . | . . . . Flight . | . . . . Utility 10 | 2 2 3 3 Device 5 | 1 1 1 2 Storage 2 | 1 1 . . Processor 1 | . . 1 . Hackware . | . . . . Protection 2 | . . 1 1 Artifact . | . . . . Weapon 8 | 2 1 2 3 Energy Gun 3 | 1 . . 2 Energy Cannon 2 | . . 1 1 Ballistic Gun 2 | 1 . 1 . Ballistic Cannon . | . . . . Launcher . | . . . . Special Weapon 1 | . 1 . . Impact Weapon . | . . . . Slashing Weapon . | . . . . Piercing Weapon . | . . . . Special Melee Weapon . | . . . . Unidentified Prototypes 2 | . . 1 1 Parts Lost 13 | . 1 1 11 Power 3 | . . 1 2 Propulsion 5 | . . . 5 Utility 3 | . 1 . 2 Weapon 2 | . . . 2 Highest Loss Streak 7 | . 1 1 7 To Critical Strikes . | . . . . Average Backups 8 | 2 6 9 9 Power . | 1 . 1 . Propulsion 1 | . . 2 . Utility 2 | . 3 2 4 Weapon 3 | 1 2 4 4 Tool/Special . | . . . . Unused Backups 15 | . 3 4 8 Power 1 | . 1 . . Propulsion . | . . . . Utility 7 | . 2 1 4 Weapon 7 | . . 3 4 Tool/Special . | . . . . Average Slot Usage (%) 97 | . 99 99 88 Engine 11 | . 14 10 7 Leg 25 | . 28 22 29 Device 16 | . 13 21 11 Storage 11 | . 14 11 9 Processor 6 | . . 10 9 Energy Gun 7 | . 14 2 5 Energy Cannon 5 | . . 8 7 Ballistic Gun 10 | . 13 10 3 Peak Build Rating 21 | 7 8 15 21 Average Rating 11 | 5 7 13 17 On Entrance 7 | . 7 8 15 Avg Prop Armor Cover (%) . | . . . . Naked Turns . | . . . . Heaviest Build 31 | 13 18 26 31 Greatest Support 43 | 20 20 23 43 Greatest Overweight (x) 1 | . . 1 . Average Overweight (x) . | . . . . Largest Inventory Capacity 10 | 8 10 10 10 Average Capacity 9 | 7 8 10 10 Most Carried 10 | 5 9 10 10 Average Carried 8 | 2 7 9 9 Final Capacity 10 | 8 10 10 10 Final Carried 10 | 4 9 10 10 Class Distribution -------------------- 48% | Mutant 34% | Scavenger-Skirmisher 14% | Skirmisher Dominant Class ---------------- Mutant | -10/Materials Scavenger-Skirmisher | -9/Materials Mutant | -8/Materials Resources | -11 -10 -9 -8 ----------- Run | Yrd Mat Mat Mat Matter Collected 908 | 297 182 281 148 Remotely . | . . . . Salvage Created 1422 | 153 346 428 495 Parts 98 | 10 36 25 27 Haulers Intercepted 3 | . 2 1 . Recyclers Shooed 2 | 1 . 1 . Parts Field Recycled . | . . . . Retrieved Matter . | . . . . Parts Self-Destructed . | . . . . Prevented . | . . . . Parts Restored . | . . . . Kills | -11 -10 -9 -8 ------- Run | Yrd Mat Mat Mat Combat Hostiles Destroyed 22 | . 7 6 9 Guns 17 | . 7 3 7 Cannons 4 | . . 3 1 Classes Destroyed 9 | 2 5 2 . Builder 4 | . 3 . 1 Tunneler 4 | 3 1 . . Hauler 3 | . 2 1 . Recycler 4 | 1 . 2 1 Watcher 3 | . 2 1 . Swarmer 10 | . 5 2 3 Grunt 7 | . 2 1 4 Duelist 1 | . . 1 . Sentry 4 | . . 2 2 Best Kill Streak 5 | 2 4 3 5 Combat Bots Only 4 | . 3 3 4 Max Kills in Single Turn 1 | 1 1 1 1 Gunslinging . | . . . . Exploded . | . . . . Melee . | . . . . Uniques/NPCs Destroyed . | . . . . Combat | -11 -10 -9 -8 -------- Run | Yrd Mat Mat Mat Hostile Shots Fired 143 | . 40 31 72 Missed 32 | . 11 8 13 Hits 111 | . 29 23 59 Melee 2 | . . 2 . Projectile 109 | . 29 21 59 Critical Strikes 2 | . . 1 1 Damage Taken 1694 | . 250 321 1123 Core 274 | . 71 58 145 Absorbed by Shields . | . . . . Core Remaining (%) 85 | 100 71 85 . Volleys Fired 111 | 9 40 26 36 Largest 2 | 2 2 2 2 Hottest 131 | 70 100 100 131 Shots Fired 205 | 18 78 50 59 Gun 166 | 18 77 30 41 Cannon 36 | . . 18 18 Launcher . | . . . . Special 3 | . 1 2 . Kinetic 79 | 9 39 24 7 Thermal 86 | 9 39 26 12 Explosive . | . . . . Electromagnetic 40 | . . . 40 Robot Hit Streak 10 | 7 8 9 10 Robot Miss Streak 7 | 2 7 3 7 Penetration Max . | . . . . Secondary Targets 2 | . 2 . . Max Gunslinging Chain 1 | . 1 . . Shots Hit Robots 126 | 11 40 31 44 Core Hits 63 | 4 19 16 24 Critical Kills 2 | . 1 1 . Critical Parts Destroyed 2 | . . 2 . Critical Strikes 6 | 2 1 3 . Burn 2 | 2 . . . Meltdown 1 | . . 1 . Destroy 3 | . 1 2 . Melee Attacks . | . . . . Impact . | . . . . Slashing . | . . . . Piercing . | . . . . Sneak Attacks . | . . . . Combat Hostiles . | . . . . Follow-up Attacks . | . . . . Damage Inflicted 2141 | 154 533 557 897 Guns 1595 | 154 533 328 580 Cannons 391 | . . 224 167 Explosions 150 | . . . 150 Melee . | . . . . Ramming 5 | . . 5 . Kinetic 756 | 90 274 316 76 Thermal 792 | 64 259 236 233 Explosive . | . . . . Electromagnetic 588 | . . . 588 Impact . | . . . . Slashing . | . . . . Piercing . | . . . . Highest Corruption . | . . . . Average Corruption . | . . . . Corruption Purged . | . . . . Corruption Blocked . | . . . . Overload Shots . | . . . . Overflow Damage . | . . . . Projectiles . | . . . . Explosions . | . . . . Melee . | . . . . Knockbacks . | . . . . Impact . | . . . . Kinetic . | . . . . Secondary . | . . . . Self-Inflicted Damage . | . . . . Shots . | . . . . Rammed . | . . . . Targets Rammed 2 | . . 2 . Kicked 2 | . . 2 . Crushed . | . . . . Highest Temperature 459 | 45 60 93 459 Average Temperature 60 | 18 17 24 155 Received Heat Transfer 501 | . 24 81 396 Effects 6 | . . . 6 Shutdowns 2 | . . . 2 Energy Bleed 1 | . . . 1 Damage (major) 3 | . . . 3 Siege Activations . | . . . . Martial Activations . | . . . . Shielding Activations . | . . . . Robots Disrupted . | . . . . Combat Hostiles . | . . . . Robots Corrupted 1 | . . . 1 Combat Hostiles 1 | . . . 1 Parts Fried 3 | . . . 3 Impact Corruptions . | . . . . Robots Melted 1 | . . 1 . Combat Hostiles . | . . . . Parts Melted 1 | . . . 1 Heat Transferred 1952 | 333 777 444 398 Parts Sabotaged . | . . . . Parts Stolen . | . . . . Parts Stripped . | . . . . Power Chain Reactions 1 | . . . 1 Alert | -11 -10 -9 -8 ------- Run | Yrd Mat Mat Mat Maximum Alert Level 1 | . . . 1 Low Security (%) 99 | 100 100 100 99 Level 1 . | . . . . Level 2 . | . . . . Level 3 . | . . . . Level 4 . | . . . . Level 5 . | . . . . High Security . | . . . . Max Security . | . . . . Peak Influence 204 | 10 77 80 204 Initial 13 | . . 6 13 Average 38 | 1 35 25 89 Influence Increases 892 | 20 260 231 381 Destroy 0b10 Robot/C 440 | . 140 120 180 Destroy 0b10 Robot/NC 90 | 20 40 20 10 Destroy Leader 122 | . 38 34 50 Successful Hack 39 | . 27 12 . Disable Machine 30 | . 15 15 . Destroy Structure 6 | . . . 6 Lose Combat Pursuer 165 | . . 30 135 Influence Decreases 728 | 20 244 214 250 Entered New Map 30 | . . 10 20 Time Decay 578 | 20 234 204 120 Lost Part 120 | . 10 . 110 Squads Dispatched 3 | . 1 . 2 Investigation . | . . . . Extermination . | . . . . Reinforcement 3 | . 1 . 2 Assault . | . . . . Garrison . | . . . . Intercept . | . . . . Searches Triggered . | . . . . Construction Impeded . | . . . . Haulers Reinforced . | . . . . Active Scanning Responses . | . . . . Cargo Convoy Interrupts . | . . . . Stealth | -11 -10 -9 -8 --------- Run | Yrd Mat Mat Mat Distress Signals 3 | . 1 . 2 Communications Jammed . | . . . . Distress Signals . | . . . . Times Spotted 40 | . 12 10 18 Peak Tracking Total 6 | . 4 5 6 Tactical Retreats 7 | . . 1 6 Traps | -11 -10 -9 -8 ------- Run | Yrd Mat Mat Mat Traps Triggered 1 | . . . 1 Indirectly . | . . . . Trap Hack Attempts . | . . . . Triggered . | . . . . Disarmed . | . . . . Reprogrammed . | . . . . Reused . | . . . . Traps Extracted . | . . . . Installed . | . . . . Triggered . | . . . . Machines | -11 -10 -9 -8 ---------- Run | Yrd Mat Mat Mat Machines Disabled 2 | . 1 1 . Max in Single Turn 1 | . 1 1 . Machines Repaired . | . . . . Machines Dismantled . | . . . . Machines Sabotaged . | . . . . Overloaded Fab Kills . | . . . . Hacking | -11 -10 -9 -8 --------- Run | Yrd Mat Mat Mat Machines Accessed 8 | . 4 4 . Terminals 6 | . 4 2 . Fabricators . | . . . . Repair Stations . | . . . . Recycling Units . | . . . . Scanalyzers 2 | . . 2 . Garrison Access . | . . . . Total Hacks 24 | . 15 9 . Successful 14 | . 10 4 . Failed 10 | . 5 5 . Catastrophic 3 | . 1 2 . Database Lockouts . | . . . . Manual 16 | . 12 4 . Terminals 20 | . 15 5 . Fabricators . | . . . . Repair Stations . | . . . . Recycling Units . | . . . . Scanalyzers 4 | . . 4 . Garrison Access . | . . . . Terminal Hacks 7 | . 6 1 . Prototype ID Bank 1 | . 1 . . Level Access Points 1 | . 1 . . Terminal Index 2 | . 1 1 . Locate Traps 2 | . 2 . . Zone Layout 1 | . 1 . . Fabricator Hacks . | . . . . Repair Station Hacks . | . . . . Recycling Unit Hacks . | . . . . Scanalyzer 3 | . . 3 . Insert Component 1 | . . 1 . Retrieve Study 2 | . . 2 . Garrison Access Hacks . | . . . . Unauthorized Hacks 4 | . 4 . . Terminals 4 | . 4 . . Botnet 4 | . 4 . . Fabricators . | . . . . Repair Stations . | . . . . Recycling Units . | . . . . Scanalyzers . | . . . . Garrison Access . | . . . . Data Cores Recovered . | . . . . Used . | . . . . Hacking Detections 7 | . 4 3 . Full Trace Events . | . . . . Feedback Events . | . . . . Feedback Blocked . | . . . . Robot Schematics Acquired . | . . . . Robots Built . | . . . . Authchips . | . . . . Time . | . . . . Total Robot Build Rating . | . . . . Part Schematics Acquired . | . . . . Parts Built . | . . . . Authchips . | . . . . Time . | . . . . Total Part Build Rating . | . . . . Part Studies Acquired 2 | . . 2 . Parts Repaired . | . . . . Time . | . . . . Parts Recycled . | . . . . Recycled Matter . | . . . . Retrieved Matter . | . . . . Retrieved Components . | . . . . Parts Scanalyzed . | . . . . Part Schematics Acquired . | . . . . Parts Damaged . | . . . . Bothacking | -11 -10 -9 -8 ------------ Run | Yrd Mat Mat Mat Used RIF Installer . | . . . . Robots Hacked . | . . . . Non-combat . | . . . . Combat . | . . . . Robot Hacks Applied . | . . . . Relay Couplers Released . | . . . . Fabnet Peak Effective % . | . . . . Robots Rewired . | . . . . Allies Hacked . | . . . . Hacks Repelled . | . . . . Allies | -11 -10 -9 -8 -------- Run | Yrd Mat Mat Mat Total Allies . | . . . . Largest Group . | . . . . Highest-Rated Group . | . . . . Highest-Rated Ally . | . . . . Total Orders . | . . . . Ally Attacks . | . . . . Total Damage . | . . . . Kills . | . . . . Allies Corrupted . | . . . . Allies Melted . | . . . . Intel | -11 -10 -9 -8 ------- Run | Yrd Mat Mat Mat Active Infowar (turns) 1329 | 14 509 638 168 Sensors 804 | . . 636 168 Structural 1037 | . 311 624 102 Seismic 212 | 14 198 . . Robot Analysis Total . | . . . . Derelict Logs Recovered . | . . . . Drone Launches . | . . . . Drone Recoveries . | . . . . Exploration | -11 -10 -9 -8 ------------- Run | Yrd Mat Mat Mat Turns Passed 1494 | 85 516 638 255 Spaces Moved 765 | 43 276 334 112 Core 15 | 15 . . . Treads . | . . . . Legs 750 | 28 276 334 112 Wheels . | . . . . Hover . | . . . . Flight . | . . . . Fastest Speed 50 | 50 120 105 105 Average Speed 133 | 95 120 158 108 Slowest Speed 182 | 120 120 182 110 Overloaded Moves . | . . . . Propulsion Burnouts . | . . . . Robots Hopped . | . . . . Potential Cave-ins . | . . . . Cave-ins Triggered . | . . . . Exploration Rate (%) 21 | 3 43 30 11 Regions Visited 3 Branch Regions . Pre-discovered Areas . | . . . . Known Exits Taken 2 | . 1 1 . Unknown Exits Taken 1 | 1 . . . Scrap Searched . | . . . . Spaces Dug . | . . . . Terrain Destroyed 4 | . . . 4 Melee . | . . . . Projectile . | . . . . AOE 4 | . . . 4 Terrain Rammed . | . . . . Walls Destroyed . | . . . . Machines Disabled . | . . . . Actions | -11 -10 -9 -8 --------- Run | Yrd Mat Mat Mat Total 1023 | 67 382 392 182 Wait 65 | 1 46 3 15 Move 762 | 42 275 333 112 Hop . | . . . . Pick Up 28 | 8 8 9 3 Fast Attach 12 | 3 . 3 6 Attach 10 | 4 1 2 3 Detach . | . . . . Swap 16 | . 6 5 5 Drop 17 | . 6 9 2 Fire 111 | 9 40 26 36 Melee . | . . . . Ram . | . . . . Kick 2 | . . 2 . Crush . | . . . . Escape Stasis . | . . . . Rewire . | . . . . Trap . | . . . . Miscellaneous . | . . . . Route ------- -11/Scrapyard -10/Materials (discovered 4 exits: *Mat x3 / [*Min]) -9/Materials (discovered 2 exits: *Mat / *Min) -8/Materials History --------- Turn | Location | Event 14 | -11/Scrapyard | Discovered new exit (range 16) 86 | -11/Scrapyard | Entered Materials 300 | -10/Materials | Discovered new exit (range 16) 311 | -10/Materials | Build established: Mutant 378 | -10/Materials | Discovered new exit (range 13) 419 | -10/Materials | Identified exit to Materials 602 | -10/Materials | Entered another Materials area 602 | -9/Materials | Evolved 2 slots: Utility x2 925 | -9/Materials | Discovered new exit (range 9) 941 | -9/Materials | Identified exit to Mines 1154 | -9/Materials | Build established: Scavenger-Skirmisher 1222 | -9/Materials | Discovered new exit (range 3) 1227 | -9/Materials | Identified exit to Materials 1240 | -9/Materials | Entered another Materials area 1240 | -8/Materials | Evolved 2 slots: Propulsion x2 1409 | -8/Materials | Lost 4 parts (1p2n1w) 1495 | -8/Materials | Self-destructed Last Messages --------------- 01477_ Power failure, Imp. Ion Engine shutdown. 01477_ Aluminum Leg+ destroyed. 01478_ M-13 Machinist repairs G-47 Trooper. 01478_ Imp. Light Armor Plating destroyed. 01481_ Imp. EM Shotgun destroyed. 01483_ Overheating: Imp. Ion Engine damaged (-5). 01483_ Overheating: Med. Storage Unit damaged (-136). 01483_ Overheating: Signal Interpreter damaged (-6). 01483_ G-47 Trooper IFF system glitched. 01483_ G-47 Trooper destroyed. 01485_ Carbon-fiber Leg destroyed. 01486_ U-05 Engineer lays Concrete. 01487_ Overheating: Energy bleed (-23). 01487_ U-05 Engineer lays Concrete. 01489_ Power failure, Imp. Ion Engine shutdown. 01489_ U-05 Engineer builds a Wall. 01489_ Imp. Ion Engine destroyed. 01493_ U-05 Engineer lays Concrete. 01493_ G-47 Trooper destroyed. 01494_ U-05 Engineer builds a Wall. Map ----- +----------------------------------------------------+ | ????????????????????????????????????? | | ????????????????????????????????????? | | ????????????????????????????????????? | | ????????????????????????????????????? | | ????????????????????????????????????? | | ????????????????????????????????????? | | ????????????????????????????????????? | | ????????????????????????????????????? | | ????????????????????????????????????? | | ???????#####????????????????????????? | | ???????#####????????????????????????? | | ??????? ???# #????????????????? | | ????? ?? ???? ????????????????? | | ????? ? ???? #???????????????? | | ?????? ? ???? H +???????????????? | | ?????? ???? ????????????????? | | ??????? ???? #???????????????? | | ??????? ????# ##???????????????? | | ##### ???# ##???????????????? | | #########/###### ##???????????????? | | # # ###### ##???????????????? | | # """ # ##???????????????? | | # """ [ + ##???????????????? | | # """ # =% %%!##???????????????? | | # """ ###+##### #########?????????? | | # # =@==u#*# ///#?????????? | | # """ # %=m/%+ ///#?????????? | | # """ # =[%#=# ///#?????????? | | # """ ! #########%#??### ##?????????? | | # """ #########+###???????????????? | | # ##??# [[=![#???????????????? | | #######+##??# ==! #???????????????? | | ####### ##??# ] #???????????????? | | ?????## ##??# [[ #???????????????? | | ?????## ##### [ #???????????????? | | ?????## #############???????????????? | | ?????## # ##?????????????????? | | ???#### # ##?????????????????? | | ???#### # ##?????????????????? | | ???## %#* ! ! ##?????????????????? | | ???## + ##?????????????????? | | ???## [#[ ##?????????????????? | | ???## # ##?????????????????? | | ???## # ##?????????????????? | | ???## # ##?????????????????? | | ???## ###########?????????????????? | | ???## ###########?????????????????? | | ???## ##??????????????????????????? | | ???## ##??????????????????????????? | | ???## ##??????????????????????????? | +----------------------------------------------------+ Best States ------------- Heat Dissipation 41 Energy Generation 12 Energy Capacity 265 Matter Stores 300 Matter Capacity 300 Sight Range 16 Robot Scan Range 14 Terrain Scan Density 10 Armor Coverage 150 Core Shielding 20 Evasion (%) 55 Item Schematics ----------------- None Robot Schematics ------------------ None Fabricated ------------ Nothing Repaired ---------- Nothing Studied --------- Aluminum Leg | -9/Materials | Hacked Shotgun | -9/Materials | Hacked Alien Tech Used ----------------- None Achievements -------------- None Challenges ------------ None Game ------ Seed ConstructElectronParser Manual? 0 Play Time 00:18:44 Cumulative 285.7 hours Start 2026.03.21 @ 16:38:03 End 2026.03.23 @ 21:18:06 Sessions 7 Manual Loads 0 Difficulty Rogue Special Mode None Game No. 543 Rogue 543 Adventurer 0 Explorer 0 Win Type - Total 1 Types 1/0/0/0/0/0/0/0/0/0 Lore% 37 Gallery% 48 Achievement% 31 Wizard Run 0 Options --------- Layout 1 ASCII 0 Keyboard 1 Movement Vi Keybinds 0 Fullscreen 0 Font 20/Smallcaps Map View 59x39 Zoom Use 0% Tactical HUD 1 Map Filters NONE Filters NONE Steam 1 RUN: 8824d2ee-e2f5-4ed0-abcf-a245d4859066